Cogmind - Beta 15 --- EXPLORER MODE // 2025.06.18 @ 16:38:11 Player: EdibleCrab Result: Destroyed by Q825-r with Centrium Greatsword Performance ------------- Evolutions (9) 4500 Regions Visited (17) 3400 Robots Destroyed (234) 1170 Value Destroyed (10835) 10835 Prototype IDs (37) 740 Alien Tech Used (0) 0 Bonus (4412) 4412 TOTAL SCORE: 25057 Bonus ------- High Alert Combat Kills 1501 Follower Combat Kills 1860 Entered DSFs 500 Met Imprinter 300 Was Imprinted 300 Scanned by Researcher 500 Friendly Fire -549 Cogmind --------- Core Integrity 0/1600 Matter 300/300 Energy 95/100 System Corruption 8% Temperature Cool (0) Movement Core (1400) Ox27 Location -1/Access Parts ------- > --- POWER (3) -------- (None) > --- PROPULSION (5) --- (None) > --- UTILITY (13) ----- Huge Storage Unit Enhanced Optical Array Advanced Signal Interpreter Advanced Target Analyzer Graphene Brace Graphene Brace Graphene Brace > --- WEAPON (5) ------- (None) > --- INVENTORY (25) --- Medium Storage Unit Advanced Remote Datajack Peak State ------------ > --- POWER ------------ Micro Antimatter Reactor Quantum Reactor Quantum Reactor > --- PROPULSION ------- Centrium Leg Centrium Leg Centrium Leg Centrium Leg Centrium Leg > --- UTILITY ---------- Advanced Heat Sink Advanced Heat Sink High-capacity Storage Unit Structural Scanner Enhanced Optical Array Advanced Signal Interpreter Long-range IFF Parser Advanced Target Analyzer Advanced Target Analyzer Graphene Brace Graphene Brace Advanced Force Field Improved Dynamic Insulation System > --- WEAPON ----------- Compact HERF Cannon Compact HERF Cannon Compact HERF Cannon Compact HERF Cannon Enhanced Hardcell Cannon > --- INVENTORY -------- Reinforced Antimatter Reactor Biometal Leg Biometal Leg Biometal Leg Medium Storage Unit Experimental Actuator Array Graphene Brace Improved Recalibrator Gamma Rifle Quantum Rifle Compact HERF Cannon Enhanced Nova Cannon Helical Railgun Fusion Bomb Launcher Advanced Remote Datajack Dual-blade Saw [Rating: 196] Favorites ----------- Power Cooled Ion Engine Engine Cooled Ion Engine Power Core Neutrino Core Reactor Particle Reactor Propulsion Aluminum Leg Leg Aluminum Leg Hover Unit Gravmag System Flight Unit Makeshift Flight Unit Utility Improved Signal Interpreter Device Experimental Heat Sink Storage Large Storage Unit Processor Improved Signal Interpreter Hackware Hacking Suite Protection Centrium Light Armor Plating Weapon Dispersion Rifle Energy Gun Dispersion Rifle Energy Cannon Heavy Ion Cannon Ballistic Gun Helical Railgun Ballistic Cannon Light Cannon Launcher Micro-nuke Launcher Special Weapon Remote Datajack Slashing Weapon Dual-blade Saw Special Melee Weapon Improved Datajack Build | -11 -10 -9 -9 -8 -7 -7 -7 -7 -6 -6 -5 -4 -4 -3 -3 -2 -1 ------- Run | Yrd Mat Mat Min Mat Fac Low Low Zio Pro Fac Fac Fac DSF Res Tes Res Acc Slots Evolved 19 | . 1 2 . 2 2 . . . . 2 2 2 . 2 . 2 2 Power 2 | . . 1 . . . . . . . . . . . . . . 1 Propulsion 3 | . . 1 . 1 . . . . . . . . . 1 . . . Utility 11 | . 1 . . 1 2 . . . . 2 2 2 . . . . 1 Weapon 3 | . . . . . . . . . . . . . . 1 . 2 . Parts Attached 229 | 6 8 13 1 8 12 2 . 9 6 25 15 4 11 31 20 30 28 Power 31 | 1 . 5 . . . . . 1 2 1 2 1 4 6 . 3 5 Engine 8 | 1 . 5 . . . . . 1 . 1 . . . . . . . Core 5 | . . . . . . . . . 2 . 2 . . 1 . . . Reactor 18 | . . . . . . . . . . . . 1 4 5 . 3 5 Propulsion 58 | 2 1 3 1 3 2 2 . 3 4 5 4 1 2 8 7 7 3 Treads . | . . . . . . . . . . . . . . . . . . Leg 51 | 2 1 3 1 3 2 2 . 1 . 4 4 1 2 8 7 7 3 Wheel . | . . . . . . . . . . . . . . . . . . Hover 1 | . . . . . . . . . 1 . . . . . . . . Flight 6 | . . . . . . . . 2 3 1 . . . . . . . Utility 82 | 2 4 1 . 2 6 . . 3 . 12 7 1 2 14 7 10 11 Device 41 | . . . . . 3 . . 2 . 9 3 . . 5 5 7 7 Storage 7 | 1 2 . . . . . . . . . 1 . . . . . 3 Processor 9 | 1 1 1 . 1 1 . . . . 1 . . . . 1 1 1 Hackware 3 | . . . . . . . . 1 . . 2 . . . . . . Protection 22 | . 1 . . 1 2 . . . . 2 1 1 2 9 1 2 . Artifact . | . . . . . . . . . . . . . . . . . . Weapon 58 | 1 3 4 . 3 4 . . 2 . 7 2 1 3 3 6 10 9 Energy Gun 21 | . 1 2 . 1 1 . . 2 . 3 2 . 2 2 . 4 1 Energy Cannon 12 | . . . . 1 1 . . . . 1 . . . . 3 . 6 Ballistic Gun 6 | 1 . . . . . . . . . . . . . . . 4 1 Ballistic Cannon 9 | . 2 2 . 1 1 . . . . 2 . . . . . . 1 Launcher 5 | . . . . . . . . . . . . . 1 1 2 1 . Special Weapon 3 | . . . . . 1 . . . . . . 1 . . 1 . . Impact Weapon . | . . . . . . . . . . . . . . . . . . Slashing Weapon 1 | . . . . . . . . . . . . . . . . 1 . Piercing Weapon . | . . . . . . . . . . . . . . . . . . Special Melee Weapon 1 | . . . . . . . . . . 1 . . . . . . . Unidentified Prototypes 16 | . . 1 . 1 . . . 1 . . . . . 5 6 1 1 Parts Lost 90 | . . . . . . . . . 2 . 1 . . 17 21 10 39 Power 9 | . . . . . . . . . . . . . . 2 1 . 6 Propulsion 22 | . . . . . . . . . 1 . . . . 6 6 1 8 Utility 35 | . . . . . . . . . . . 1 . . 7 9 6 12 Weapon 24 | . . . . . . . . . 1 . . . . 2 5 3 13 Highest Loss Streak 38 | . . . . . . . . . 1 . 1 . . 3 15 3 38 To Critical Strikes 1 | . . . . . . . . . . . . . . . 1 . . Average Backups 5 | 4 10 14 14 12 4 4 5 3 3 4 4 2 3 3 2 2 8 Power . | . 1 . . . . . . . . . . . . . . . . Propulsion . | . 1 1 2 3 . 1 2 . 1 . . . . . . 1 1 Utility 3 | 1 6 8 8 7 3 3 3 1 1 2 1 1 2 3 1 . 2 Weapon 1 | 1 1 3 4 2 . . . 1 . 1 . . . . . . 3 Tool/Special . | . . . . . . . . . . . . . . . . . . Unused Backups 39 | . 4 4 . 9 2 . . 4 1 5 6 . . 4 . . . Power 2 | . . . . . . . . . 1 . 1 . . . . . . Propulsion 6 | . 2 . . 1 . . . . . . 3 . . . . . . Utility 21 | . 1 3 . 6 2 . . 2 . 3 . . . 4 . . . Weapon 10 | . 1 1 . 2 . . . 2 . 2 2 . . . . . . Tool/Special . | . . . . . . . . . . . . . . . . . . Average Slot Usage (%) 91 | . 98 99 100 93 94 100 100 78 87 87 99 90 89 88 87 81 92 Engine 6 | . 12 19 20 16 14 14 14 9 3 4 2 . . . . . . Core 1 | . . . . . . . . . 5 6 8 8 1 . 4 . . Reactor 2 | . . . . . . . . . . . . 1 8 8 3 7 9 Leg 19 | . 25 30 30 33 27 28 28 9 . 13 22 19 20 18 16 18 17 Flight 2 | . . . . . . . . 9 25 6 . . . . . . . Device 16 | . . . . . 10 14 14 20 21 21 27 25 22 17 15 24 28 Storage 2 | . 12 10 10 8 1 . . . . . . . . . . . 2 Processor 10 | . 11 10 10 15 14 14 14 7 7 11 11 10 10 9 9 9 14 Hackware 2 | . . . . . . . . 4 7 2 6 5 5 3 . . . Protection 11 | . 11 10 10 8 15 14 14 9 7 10 8 10 12 16 23 3 . Energy Gun 5 | . 7 . . 1 3 . . 1 8 5 10 9 3 9 7 6 3 Energy Cannon 1 | . . . . . 1 7 7 2 . . . . . . . . 6 Ballistic Cannon 2 | . 7 19 20 8 1 . . . . . . . . . . . 2 Special Weapon 1 | . . . . . 2 7 7 3 1 . . . 1 . . 1 . Peak Build Rating 196 | 6 9 17 16 26 41 40 40 51 57 79 103 111 121 160 166 164 196 Average Rating 80 | 4 8 13 16 23 35 40 40 43 50 65 98 105 113 140 148 144 174 On Entrance 57 | . 6 9 16 16 25 40 40 40 47 44 79 102 107 121 137 60 142 Naked Turns . | . . . . . . . . . . . . . . . . . . Heaviest Build 232 | 17 34 45 45 51 55 34 34 35 24 51 64 85 125 120 98 104 232 Greatest Support 150 | 20 20 33 33 48 53 53 53 56 24 65 84 84 89 129 136 150 150 Greatest Overweight (x) 39 | 3 1 1 1 1 1 . . 3 1 1 . 1 1 2 1 2 39 Average Overweight (x) . | . . 1 1 . . . . . . . . . . . . . . Largest Inventory Capacity 25 | 10 15 15 15 15 15 5 5 5 5 5 25 5 5 5 5 5 25 Average Capacity 8 | 9 14 15 15 15 7 5 5 5 5 5 5 5 5 5 5 5 17 Most Carried 17 | 8 15 15 15 15 9 5 5 5 5 5 5 5 5 5 5 5 17 Average Carried 6 | 4 10 14 14 13 5 4 5 4 3 4 4 3 3 3 3 2 8 Final Capacity 25 | 10 15 15 15 15 5 5 5 5 5 5 5 5 5 5 5 5 25 Final Carried 15 | 8 15 14 15 10 3 5 5 2 4 5 5 4 5 1 3 4 2 Class Distribution -------------------- 45% | Hacker-Mutant 12% | Hacker-Tank 11% | Hacker-Skirmisher 9% | Scavenger-Tank 5% | Scavenger-Skirmisher 4% | Scavenger-Gunner 3% | Hacker-Sprinter 3% | Scavenger-Mutant Dominant Class ---------------- Hacker-Mutant | -10/Materials Hacker-Mutant | -9/Materials Hacker-Mutant | -9/Mines Hacker-Mutant | -8/Materials Hacker-Mutant | -7/Factory Hacker-Mutant | -7/Lower Caves Hacker-Mutant | -7/Lower Caves Hacker-Mutant | -7/Zion Hacker-Mutant | -6/Proximity Caves Scavenger-Skirmisher | -6/Factory Hacker-Skirmisher | -5/Factory Hacker-Skirmisher | -4/Factory Hacker-Skirmisher | -4/DSF Hacker-Tank | -3/Research Scavenger-Tank | -3/Testing Scavenger-Tank | -2/Research Scavenger-Gunner | -1/Access Resources | -11 -10 -9 -9 -8 -7 -7 -7 -7 -6 -6 -5 -4 -4 -3 -3 -2 -1 ----------- Run | Yrd Mat Mat Min Mat Fac Low Low Zio Pro Fac Fac Fac DSF Res Tes Res Acc Matter Collected 6290 | 180 248 417 109 286 230 47 20 125 147 360 330 20 292 1334 714 821 610 Remotely . | . . . . . . . . . . . . . . . . . . Salvage Created 9673 | . 275 380 95 233 213 55 99 . 44 40 1430 . 345 3258 1495 747 964 Parts 439 | . 15 33 15 13 16 1 5 . 1 2 55 . 14 154 57 25 33 Haulers Intercepted 4 | . . 1 . . . . . . . . . . . 2 1 . . Recyclers Shooed 6 | . . . . . . . . . . . . . . 6 . . . Parts Field Recycled . | . . . . . . . . . . . . . . . . . . Retrieved Matter . | . . . . . . . . . . . . . . . . . . Parts Self-Destructed . | . . . . . . . . . . . . . . . . . . Prevented . | . . . . . . . . . . . . . . . . . . Kills | -11 -10 -9 -9 -8 -7 -7 -7 -7 -6 -6 -5 -4 -4 -3 -3 -2 -1 ------- Run | Yrd Mat Mat Min Mat Fac Low Low Zio Pro Fac Fac Fac DSF Res Tes Res Acc Combat Hostiles Destroyed 173 | . 8 13 5 6 5 1 3 . 2 . 22 . 7 62 15 9 15 Melee 1 | . . . . . . . . . . . . . . . . 1 . Guns 81 | . 6 . . . 2 . . . 2 . 21 . 1 38 3 5 3 Cannons 44 | . 2 13 5 6 3 1 3 . . . . . . . . . 11 AOE 31 | . . . . . . . . . . . . . 6 21 3 1 . Classes Destroyed 25 | . 3 4 2 1 2 . . . . 1 3 . 2 4 2 . 1 Worker 10 | . . . . . . . . . . 1 . . . 6 2 1 . Builder 10 | . . . . 1 . . . . . . . . . 5 4 . . Tunneler 4 | . . . 1 . . . . . . . . . . 2 . 1 . Hauler 4 | . . 1 . . . . . . . . . . . 2 1 . . Recycler 12 | . . 2 . . . . . . . . 3 . . 6 . . 1 Mechanic 1 | . . . . . 1 . . . . . . . . . . . . Operator 3 | . . 1 . . . . . . . . . . . . 2 . . Drone 1 | . . . . . . . . . . . . . . . 1 . . Watcher 15 | . 2 4 . 1 1 . . . . 1 1 . . 1 2 1 1 Swarmer 51 | . 4 11 3 1 1 . 2 . 2 . 3 . 4 14 . . 6 Saboteur 2 | . . . . . . . . . . . . . . 2 . . . Grunt 38 | . 4 . 1 3 3 1 . . . . 3 . . 14 8 . 1 Brawler 4 | . . . 1 . . . . . . . . . . 1 1 . 1 Duelist 5 | . . . . . . . . . . . . . . 3 1 . 1 Researcher 4 | . . . . . . . . . . . . . . . 4 . . Sentry 15 | . . 2 . 2 . . . . . . 5 . . 3 1 2 . Demolisher 1 | . . . . . . . . . . . 1 . . . . . . Specialist 1 | . . . . . . . . . . . . . . 1 . . . Hunter 15 | . . . . . . . . . . . 1 . 2 6 3 3 . Programmer 30 | . . . . . 1 . 1 . . . 5 . . 16 . 4 3 Heavy 2 | . . . . . . . . . . . . . 1 1 . . . Q-Series 3 | . . . . . . . . . . . . . . . . . 3 Executioner 1 | . . . . . . . . . . . . . . 1 . . . Protovariant X 1 | . . . . . . . . . . . . . . . 1 . . Assembled 4 | . . . . . . . . . . . 4 . . . . . . Fireman 2 | . . . . . . . . . . . . . 2 . . . . Best Kill Streak 16 | . 2 5 4 4 2 1 2 . 2 1 6 . 4 16 15 3 6 Combat Bots Only 11 | . 2 4 3 3 2 1 2 . 2 . 5 . 4 11 11 2 3 Max Kills in Single Turn 3 | . 2 1 1 1 1 1 1 . 1 1 2 . 3 3 3 1 1 Gunslinging 1 | . 1 . . . . . . . . . . . . 1 . . . Exploded 3 | . . . . . . . . . . . . . 3 2 1 1 . Melee 1 | . . . . . . . . . . . . . . . . 1 . Uniques/NPCs Destroyed . | . . . . . . . . . . . . . . . . . . Combat | -11 -10 -9 -9 -8 -7 -7 -7 -7 -6 -6 -5 -4 -4 -3 -3 -2 -1 -------- Run | Yrd Mat Mat Min Mat Fac Low Low Zio Pro Fac Fac Fac DSF Res Tes Res Acc Hostile Shots Fired 2253 | . 41 68 8 52 57 4 16 . 42 21 55 . 21 623 582 234 429 Missed 749 | . 13 17 2 16 13 3 7 . 19 13 12 . 7 218 217 81 111 Deflected 2 | . . . . . . . . . . . . . . 1 1 . . Hits 1504 | . 28 51 6 36 44 1 9 . 23 8 43 . 14 405 365 153 318 Melee 104 | . . . . . . . . . . . . . . 18 4 . 82 Projectile 1400 | . 28 51 6 36 44 1 9 . 23 8 43 . 14 387 361 153 236 AOE 8 | . . . . . . . . . . . 8 . . . . . . Critical Strikes 107 | . . 1 . 1 3 . . . . . 2 . 1 25 18 11 45 Actively Blocked 65 | . . . . . . . . . . . . . . 1 8 11 45 Part Disruptions 5 | . . . . . . . . . . . 2 . . 1 . . 2 Damage Taken 20900 | . 199 270 27 262 436 10 87 19 166 34 548 . 123 5238 3860 2521 7100 Core 2827 | . 17 16 . 11 74 . . 19 31 . 38 . 16 396 423 181 1605 Absorbed by Shields 426 | . . . . . . . . . . 15 113 . 34 . . . 264 Redirected to Shielding 575 | . . . . . 59 . 15 . 16 11 58 . 15 289 112 . . Ignored by Resistances 14115 | . 125 188 21 170 263 6 53 . 108 34 449 . 461 4559 2332 1478 3868 Regen/Repaired (Parts) 118 | . 43 . . . 75 . . . . . . . . . . . . Core Remaining (%) 88 | 100 93 . 96 98 . . . . 82 100 96 . 98 . 37 87 . Volleys Fired 573 | . 25 36 9 25 46 10 15 . 7 6 67 . 13 166 59 42 47 Largest 5 | . 2 2 2 2 1 1 1 . 2 2 2 . 2 3 3 5 5 Hottest 385 | . 60 130 60 85 65 65 65 . 100 160 162 . 130 238 260 357 385 Shots Fired 1141 | . 50 73 18 26 46 10 15 . 11 11 134 . 23 343 119 135 127 Gun 819 | . 46 8 . 1 32 . . . 11 10 134 . 11 297 86 130 53 Cannon 233 | . 4 65 18 25 12 6 15 . . 1 . . . . 13 . 74 Launcher 81 | . . . . . . . . . . . . . 12 46 18 5 . Special 8 | . . . . . 2 4 . . . . . . . . 2 . . Kinetic 251 | . 27 65 18 25 10 . . . . . . . . . . 61 45 Thermal 541 | . . 8 . 1 2 6 15 . 11 11 134 . 11 262 . 37 43 Explosive 79 | . . . . . . . . . . . . . 12 46 16 5 . Electromagnetic 262 | . 23 . . . 32 . . . . . . . . 35 101 32 39 Robot Hit Streak 32 | . 25 15 7 6 12 16 5 . 9 10 31 . 16 32 27 23 23 Robot Miss Streak 3 | . 1 2 2 2 2 1 2 . 1 3 3 . 2 3 3 3 2 Penetration Max 2 | . . . . . . . . . . . . . . . . 1 2 Secondary Targets 12 | . 2 . . . . . . . 1 . 3 . . 5 . 1 . Max Gunslinging Chain 1 | . 1 . . . . . . . 1 . 1 . . 1 . 1 . Shots Hit Robots 885 | . 42 47 10 19 40 8 11 . 9 15 108 . 17 256 82 120 101 Core Hits 461 | . 14 24 6 9 16 2 3 . 4 4 54 . 27 182 53 31 32 Critical Kills 14 | . . . . . . . . . . . . . . 14 . . . Critical Parts Destroyed 21 | . . . . . . . . . . . . . . 17 . 1 3 Critical Strikes 62 | . 1 2 1 2 2 . . . 1 1 7 . . 32 . 3 10 Burn 10 | . . 1 . . . . . . 1 1 7 . . . . . . Destroy 36 | . . . . . . . . . . . . . . 32 . 1 3 Blast 5 | . . 1 1 2 . . . . . . . . . . . . 1 Corrupt 9 | . 1 . . . 2 . . . . . . . . . . . 6 Sever 2 | . . . . . . . . . . . . . . . . 2 . Melee Attacks 17 | . . . . . . . . . . 9 . . . . . 8 . Impact . | . . . . . . . . . . . . . . . . . . Slashing 8 | . . . . . . . . . . . . . . . . 8 . Piercing . | . . . . . . . . . . . . . . . . . . Sneak Attacks 8 | . . . . . . . . . . 8 . . . . . . . Combat Hostiles . | . . . . . . . . . . . . . . . . . . Follow-up Attacks . | . . . . . . . . . . . . . . . . . . Damage Inflicted 34754 | . 569 840 185 957 796 162 345 19 155 143 2809 . 2246 13812 4426 3205 4085 Guns 16515 | . 501 109 . 19 321 . . . 155 143 2800 . 229 6569 1875 2459 1335 Cannons 5580 | . 68 731 185 938 475 162 345 . . . . . . . 215 . 2461 Explosions 12433 | . . . . . . . . . . . . . 2017 7229 2336 562 289 Melee 184 | . . . . . . . . . . . . . . . . 184 . Ramming 42 | . . . . . . . . 19 . . 9 . . 14 . . . Kinetic 5383 | . 289 731 185 938 448 . . . . . . . . . . 1337 1455 Thermal 12678 | . . 109 . 19 27 162 345 . 155 143 2800 . 229 6033 302 762 1592 Explosive 11787 | . . . . . . . . . . . . . 2017 7229 1979 562 . Electromagnetic 4680 | . 280 . . . 321 . . . . . . . . 536 2145 360 1038 Impact . | . . . . . . . . . . . . . . . . . . Slashing 184 | . . . . . . . . . . . . . . . . 184 . Piercing . | . . . . . . . . . . . . . . . . . . Highest Corruption 21 | . . 1 1 2 3 3 3 3 . . . . . 21 21 1 8 Average Corruption 7 | . . 1 1 1 2 3 3 3 . . . . . 10 17 1 4 Corruption Purged 4 | . . . . . . . . . . . . . . . 4 . . Corruption Blocked . | . . . . . . . . . . . . . . . . . . Effects 169 | . . 3 3 2 8 3 4 2 . . . . . 75 62 4 3 Message Errors 31 | . . . 2 1 2 . . . . . . . . 15 9 1 1 Matter Fused 31 | . . 1 . . 1 . . 2 . . . . . 14 13 . . Heat Flow Errors 22 | . . . 1 . 1 1 3 . . . . . . 9 6 1 . Energy Discharges 14 | . . 1 . . . 1 . . . . . . . 5 6 . 1 Parts Rejected 5 | . . . . . . . . . . . . . . 4 1 . . Parts Fused 2 | . . . . . . . . . . . . . . 1 . 1 . Data Loss (minor) 20 | . . . . 1 2 . . . . . . . . 8 9 . . Data Loss (major) 7 | . . . . . . 1 . . . . . . . 6 . . . Misfires 10 | . . 1 . . 1 . . . . . . . . 5 3 . . Alerts 5 | . . . . . . . 1 . . . . . . 1 3 . . Misdirections 5 | . . . . . . . . . . . . . . 1 4 . . Weapon Failures 17 | . . . . . 1 . . . . . . . . 6 8 1 1 Overload Shots . | . . . . . . . . . . . . . . . . . . Overflow Damage 792 | . . . . 30 2 . 33 . . . . . 35 371 213 . 108 Projectiles 173 | . . . . 30 2 . 33 . . . . . . . . . 108 Explosions 619 | . . . . . . . . . . . . . 35 371 213 . . Melee . | . . . . . . . . . . . . . . . . . . Knockbacks 22 | . . 6 1 4 5 . . . . . . . . . . . 6 Impact . | . . . . . . . . . . . . . . . . . . Kinetic 21 | . . 6 1 3 5 . . . . . . . . . . . 6 Secondary 1 | . . . . 1 . . . . . . . . . . . . . Self-Inflicted Damage 464 | . . . . . . . . 19 . . . . . 248 116 27 54 Shots 14 | . . . . . . . . . . . . . . 7 5 1 1 Rammed . | . . . . . . . . . . . . . . . . . . Targets Rammed 2 | . . . . . . . . . . . 1 . . 1 . . . Kicked 2 | . . . . . . . . . . . 1 . . 1 . . . Crushed . | . . . . . . . . . . . . . . . . . . Highest Temperature 967 | . 93 336 126 39 108 78 256 . . . 105 . . 399 967 471 623 Average Temperature 104 | . 26 72 18 9 21 52 71 . . . 43 . . 104 122 152 169 Received Heat Transfer 3100 | . 147 18 . 126 177 9 . . 33 18 110 . . 901 846 144 571 Effects 29 | . . . . . . . . . . . . . . . 11 7 11 Shutdowns 13 | . . . . . . . . . . . . . . . 5 4 4 Energy Bleed 3 | . . . . . . . . . . . . . . . . 1 2 Interference 4 | . . . . . . . . . . . . . . . 2 . 2 Matter Decay 1 | . . . . . . . . . . . . . . . 1 . . Short Circuit 3 | . . . . . . . . . . . . . . . 1 2 . Damage (minor) 3 | . . . . . . . . . . . . . . . 1 . 2 Damage (core) 2 | . . . . . . . . . . . . . . . 1 . 1 Siege Activations . | . . . . . . . . . . . . . . . . . . Martial Activations . | . . . . . . . . . . . . . . . . . . Shielding Activations 3 | . . . . . . . . . . . . . . 1 2 . . Total Turns 62 | . . . . . . . . . . . . . . 44 18 . . Longest Duration 44 | . . . . . . . . . . . . . . 44 9 . . Robots Disrupted 1 | . . . . . . . . . . . . . . . 1 . . Combat Hostiles 1 | . . . . . . . . . . . . . . . 1 . . Robots Corrupted 12 | . . . . . . . . . . . . . . 2 9 1 . Combat Hostiles 12 | . . . . . . . . . . . . . . 2 9 1 . Parts Fried 30 | . 1 . . . 1 . . . . . . . . 4 19 2 3 Impact Corruptions . | . . . . . . . . . . . . . . . . . . Robots Melted 3 | . . . . . . . . . . . 1 . . 1 . 1 . Combat Hostiles 3 | . . . . . . . . . . . 1 . . 1 . 1 . Parts Melted 29 | . . 1 . . 1 . . . 1 1 12 . . 12 . 1 . Heat Transferred 17132 | . . 333 . 37 37 222 407 . 407 389 4625 . 363 7642 250 888 1532 Parts Sabotaged . | . . . . . . . . . . . . . . . . . . Parts Stolen . | . . . . . . . . . . . . . . . . . . Parts Stripped . | . . . . . . . . . . . . . . . . . . Power Chain Reactions 5 | . . . . . . . . . . . . . . . 4 . 1 Alert | -11 -10 -9 -9 -8 -7 -7 -7 -7 -6 -6 -5 -4 -4 -3 -3 -2 -1 ------- Run | Yrd Mat Mat Min Mat Fac Low Low Zio Pro Fac Fac Fac DSF Res Tes Res Acc Maximum Alert Level 4 | . . . . . . . . . . . . . 1 4 2 . 1 Low Security (%) 77 | 100 100 100 100 100 100 . . . . 100 100 100 39 30 . 100 94 Level 1 2 | . . . . . . . . . . . . . 60 . 11 . 5 Level 2 12 | . . . . . . . . . . . . . . 27 88 . . Level 3 5 | . . . . . . . . . . . . . . 30 . . . Level 4 1 | . . . . . . . . . . . . . . 10 . . . Level 5 . | . . . . . . . . . . . . . . . . . . High Security . | . . . . . . . . . . . . . . . . . . Max Security . | . . . . . . . . . . . . . . . . . . Sterilizations 1 | . . . . . . . . . . . . . 1 . . . . Peak Influence 1189 | . 50 112 64 155 72 . . . . 103 162 . 365 1189 623 192 254 Initial 414 | . . . 16 9 36 . . . . . 1 . . 154 414 192 56 Average 173 | . 7 34 8 35 8 . . . . 22 54 . 211 591 516 76 38 Influence Increases 8407 | . 234 430 185 387 220 20 80 . 314 646 837 2 405 2527 1037 447 636 Destroy 0b10 Robot/C 4460 | . 160 260 140 260 120 20 60 . 220 300 540 . 180 1260 380 180 380 Destroy 0b10 Robot/NC 365 | . 10 40 5 10 10 . . . . 35 40 . 20 110 55 15 15 Destroy Leader 1022 | . 44 70 30 82 32 . 20 . 40 130 158 . 30 226 46 52 62 Allied During Kill 200 | . . . 2 5 3 . . . 24 114 39 . 5 5 1 . 2 Successful Hack 88 | . 15 13 . 3 43 . . . . . 12 2 . . . . . Disable Machine 144 | . 4 . 8 4 12 . . . . 4 20 . . 44 40 8 . Destroy Structure 1753 | . 1 2 . 8 . . . . . 18 28 . 170 822 380 192 132 Partial Spotted 30 | . . . . . . . . . . 30 . . . . . . . Lose Combat Pursuer 345 | . . 45 . 15 . . . . 30 15 . . . 60 135 . 45 Influence Decreases 8407 | . 234 371 207 314 330 20 80 . 314 640 843 . 42 1909 1564 779 760 Entered New Map 1264 | . . . 43 28 74 . . . . . 5 . 2 211 569 264 68 Time Decay 6128 | . 234 371 164 246 256 20 80 . 294 560 779 . . 1498 765 441 420 Lost Part 706 | . . . . . . . . . . . . . . 170 210 74 252 Lost Ally 309 | . . . . 40 . . . . 20 80 59 . 40 30 20 . 20 Squads Dispatched 52 | . 1 . . 1 4 . . . . 2 10 . 2 15 9 2 6 Investigation 4 | . 1 . . . 2 . . . . . . . . . 1 . . Extermination 17 | . . . . . 2 . . . . 2 3 . . 5 1 1 3 Reinforcement 15 | . . . . 1 . . . . . . 1 . 2 6 4 1 . Assault 2 | . . . . . . . . . . . . . . 2 . . . Garrison 14 | . . . . . . . . . . . 6 . . 2 3 . 3 Intercept . | . . . . . . . . . . . . . . . . . . Searches Triggered . | . . . . . . . . . . . . . . . . . . Construction Impeded 3 | . . . . . . . . . . . . . . 3 . . . Haulers Reinforced 2 | . . . . . . . . . . . . . . 1 1 . . Active Scanning Responses . | . . . . . . . . . . . . . . . . . . Cargo Convoy Interrupts 2 | . . . . . . . . . . . . . . 1 . 1 . Stealth | -11 -10 -9 -9 -8 -7 -7 -7 -7 -6 -6 -5 -4 -4 -3 -3 -2 -1 --------- Run | Yrd Mat Mat Min Mat Fac Low Low Zio Pro Fac Fac Fac DSF Res Tes Res Acc Distress Signals 11 | . 2 . . 1 1 . . . . 3 2 . . . . 1 1 Communications Jammed . | . . . . . . . . . . . . . . . . . . Distress Signals . | . . . . . . . . . . . . . . . . . . Times Spotted 318 | . 13 20 5 17 10 1 3 . 11 18 45 . 9 76 43 24 23 Peak Tracking Total 10 | . 4 6 3 6 3 1 2 . 3 3 6 . 4 9 10 10 8 Tactical Retreats 16 | . . 2 . 1 . . . . 2 1 . . . 3 5 . 2 Traps | -11 -10 -9 -9 -8 -7 -7 -7 -7 -6 -6 -5 -4 -4 -3 -3 -2 -1 ------- Run | Yrd Mat Mat Min Mat Fac Low Low Zio Pro Fac Fac Fac DSF Res Tes Res Acc Traps Triggered 10 | . . 2 . 2 2 . . . . . . 1 . 2 . . 1 Indirectly . | . . . . . . . . . . . . . . . . . . Trap Hack Attempts . | . . . . . . . . . . . . . . . . . . Triggered . | . . . . . . . . . . . . . . . . . . Disarmed . | . . . . . . . . . . . . . . . . . . Reprogrammed 1 | . 1 . . . . . . . . . . . . . . . . Reused . | . . . . . . . . . . . . . . . . . . Traps Extracted . | . . . . . . . . . . . . . . . . . . Installed . | . . . . . . . . . . . . . . . . . . Triggered . | . . . . . . . . . . . . . . . . . . Machines | -11 -10 -9 -9 -8 -7 -7 -7 -7 -6 -6 -5 -4 -4 -3 -3 -2 -1 ---------- Run | Yrd Mat Mat Min Mat Fac Low Low Zio Pro Fac Fac Fac DSF Res Tes Res Acc Machines Disabled 39 | . 1 1 2 1 3 . . . . 1 5 . . 11 12 2 . Max in Single Turn 3 | . 1 1 1 1 1 . . . . 1 1 . . 1 3 1 . Garrison Access 1 | . . . . . . . . . . . . . . 1 . . . Machines Repaired . | . . . . . . . . . . . . . . . . . . Machines Dismantled . | . . . . . . . . . . . . . . . . . . Machines Sabotaged . | . . . . . . . . . . . . . . . . . . Overloaded Fab Kills . | . . . . . . . . . . . . . . . . . . Hacking | -11 -10 -9 -9 -8 -7 -7 -7 -7 -6 -6 -5 -4 -4 -3 -3 -2 -1 --------- Run | Yrd Mat Mat Min Mat Fac Low Low Zio Pro Fac Fac Fac DSF Res Tes Res Acc Machines Accessed 29 | . 10 3 . 2 5 . . . . 1 4 1 . 1 1 1 . Terminals 17 | . 7 3 . 2 2 . . . . . 1 1 . . . 1 . Fabricators 3 | . . . . . 1 . . . . 1 1 . . . . . . Repair Stations 2 | . 1 . . . 1 . . . . . . . . . . . . Recycling Units 3 | . 2 . . . 1 . . . . . . . . . . . . Scanalyzers 2 | . . . . . . . . . . . 2 . . . . . . Garrison Access 2 | . . . . . . . . . . . . . . 1 1 . . Total Hacks 72 | . 25 10 . 3 14 . . . . 2 10 1 . 2 3 2 . Successful 47 | . 19 4 . 2 10 . . . . 1 8 1 . 1 . 1 . Failed 25 | . 6 6 . 1 4 . . . . 1 2 . . 1 3 1 . Catastrophic 1 | . . . . 1 . . . . . . . . . . . . . Database Lockouts . | . . . . . . . . . . . . . . . . . . Manual 45 | . . . . . . . . . . 8 9 . . 4 19 . 5 Terminals 40 | . 17 10 . 3 5 . . . . . 2 1 . . . 2 . Fabricators 7 | . . . . . 4 . . . . 2 1 . . . . . . Repair Stations 7 | . 3 . . . 4 . . . . . . . . . . . . Recycling Units 6 | . 5 . . . 1 . . . . . . . . . . . . Scanalyzers 7 | . . . . . . . . . . . 7 . . . . . . Garrison Access 5 | . . . . . . . . . . . . . . 2 3 . . Terminal Hacks 23 | . 12 4 . 2 2 . . . . . 1 1 . . . 1 . Record 1 | . 1 . . . . . . . . . . . . . . . . Robot Schematic 1 | . . . . . 1 . . . . . . . . . . . . Robot Analysis 1 | . . . . . 1 . . . . . . . . . . . . Prototype ID Bank 2 | . 1 1 . . . . . . . . . . . . . . . Open DSF 3 | . . . . . . . . . . . 1 1 . . . 1 . Alert Level 1 | . 1 . . . . . . . . . . . . . . . . Reprogram Traps 2 | . 2 . . . . . . . . . . . . . . . . Dispatch Records 2 | . 1 1 . . . . . . . . . . . . . . . Maintenance Status 1 | . 1 . . . . . . . . . . . . . . . . Transport Status 1 | . 1 . . . . . . . . . . . . . . . . Hauler Manifests 2 | . 1 . . 1 . . . . . . . . . . . . . Registered Components 1 | . 1 . . . . . . . . . . . . . . . . Registered Prototypes 2 | . 1 1 . . . . . . . . . . . . . . . Zone Layout 3 | . 1 1 . 1 . . . . . . . . . . . . . Fabricator Hacks 4 | . . . . . 3 . . . . 1 . . . . . . . Load Schematic 2 | . . . . . 2 . . . . . . . . . . . . Build 2 | . . . . . 1 . . . . 1 . . . . . . . Repair Station Hacks 6 | . 2 . . . 4 . . . . . . . . . . . . Scan Component 3 | . 1 . . . 2 . . . . . . . . . . . . Repair 3 | . 1 . . . 2 . . . . . . . . . . . . Recycling Unit Hacks 6 | . 5 . . . 1 . . . . . . . . . . . . Recycle Component 1 | . 1 . . . . . . . . . . . . . . . . Process 1 | . 1 . . . . . . . . . . . . . . . . Report Inventory 3 | . 2 . . . 1 . . . . . . . . . . . . Retrieve Matter 1 | . 1 . . . . . . . . . . . . . . . . Scanalyzer 7 | . . . . . . . . . . . 7 . . . . . . Insert Component 3 | . . . . . . . . . . . 3 . . . . . . Analyze 4 | . . . . . . . . . . . 4 . . . . . . Garrison Access Hacks 1 | . . . . . . . . . . . . . . 1 . . . Seal Access 1 | . . . . . . . . . . . . . . 1 . . . Unauthorized Hacks . | . . . . . . . . . . . . . . . . . . Terminals . | . . . . . . . . . . . . . . . . . . Fabricators . | . . . . . . . . . . . . . . . . . . Repair Stations . | . . . . . . . . . . . . . . . . . . Recycling Units . | . . . . . . . . . . . . . . . . . . Scanalyzers . | . . . . . . . . . . . . . . . . . . Garrison Access . | . . . . . . . . . . . . . . . . . . Data Cores Recovered 3 | . . 1 . . . . . . . 1 . . . . 1 . . Used . | . . . . . . . . . . . . . . . . . . Hacking Detections 16 | . 5 2 . 1 3 . . . . 1 2 . . 1 1 . . Full Trace Events 6 | . 2 1 . . 2 . . . . . . . . . 1 . . Feedback Events . | . . . . . . . . . . . . . . . . . . Feedback Blocked . | . . . . . . . . . . . . . . . . . . Robot Schematics Acquired 6 | . . . . . 1 . . . . . . . . . 5 . . Robots Built 8 | . . . . . 4 . . . . 4 . . . . . . . Authchips . | . . . . . . . . . . . . . . . . . . Time 268 | . . . . . 134 . . . . 134 . . . . . . . Total Robot Build Rating 32 | . . . . . 16 . . . . 16 . . . . . . . Part Schematics Acquired 15 | . . . . . . . . . . . 3 . . . 12 . . Parts Built . | . . . . . . . . . . . . . . . . . . Authchips . | . . . . . . . . . . . . . . . . . . Time . | . . . . . . . . . . . . . . . . . . Total Part Build Rating . | . . . . . . . . . . . . . . . . . . Parts Repaired 2 | . 1 . . . 1 . . . . . . . . . . . . Time 102 | . 26 . . . 76 . . . . . . . . . . . . Parts Recycled 1 | . 1 . . . . . . . . . . . . . . . . Recycled Matter 313 | . 313 . . . . . . . . . . . . . . . . Retrieved Matter 313 | . 313 . . . . . . . . . . . . . . . . Retrieved Components . | . . . . . . . . . . . . . . . . . . Parts Scanalyzed 3 | . . . . . . . . . . . 3 . . . . . . Part Schematics Acquired 3 | . . . . . . . . . . . 3 . . . . . . Parts Damaged . | . . . . . . . . . . . . . . . . . . Bothacking | -11 -10 -9 -9 -8 -7 -7 -7 -7 -6 -6 -5 -4 -4 -3 -3 -2 -1 ------------ Run | Yrd Mat Mat Min Mat Fac Low Low Zio Pro Fac Fac Fac DSF Res Tes Res Acc Used RIF Installer . | . . . . . . . . . . . . . . . . . . Robots Hacked 11 | . . . . . 1 2 . . . 8 . . . . . . . Non-combat 10 | . . . . . 1 1 . . . 8 . . . . . . . Combat 1 | . . . . . . 1 . . . . . . . . . . . Robot Hacks Applied 14 | . . . . . 2 3 . . . 9 . . . . . . . parse_system 8 | . . . . . 1 3 . . . 4 . . . . . . . find_chute 3 | . . . . . 1 . . . . 2 . . . . . . . find_recycling 2 | . . . . . . . . . . 2 . . . . . . . check_alert 1 | . . . . . . . . . . 1 . . . . . . . Relay Couplers Released . | . . . . . . . . . . . . . . . . . . Fabnet Peak Effective % . | . . . . . . . . . . . . . . . . . . Robots Rewired 1 | . . . . . . . . . . . . . . . 1 . . Allies Hacked 1 | . . . . . . . . . . . . . . 1 . . . Hacks Repelled . | . . . . . . . . . . . . . . . . . . Allies | -11 -10 -9 -9 -8 -7 -7 -7 -7 -6 -6 -5 -4 -4 -3 -3 -2 -1 -------- Run | Yrd Mat Mat Min Mat Fac Low Low Zio Pro Fac Fac Fac DSF Res Tes Res Acc Total Allies 34 | . . . 3 . 4 . . 4 . 9 10 . . 2 1 . 1 Largest Group 8 | . . . 3 3 4 . . 4 4 8 7 5 4 1 1 . 1 Highest-Rated Group 402 | . . . 40 40 48 . . 160 160 402 321 224 196 269 47 . 50 Highest-Rated Ally 269 | . . . 16 16 12 . . 41 41 96 96 70 70 269 47 . 50 Zionite Dispatches 9 | . . . . . . . . . . 2 4 . . 2 . . 1 Light 3 | . . . . . . . . . . 1 2 . . . . . . Recon 1 | . . . . . . . . . . 1 . . . . . . . Fire 1 | . . . . . . . . . . . 1 . . . . . . Demo 1 | . . . . . . . . . . . . . . . . . 1 Experimental 1 | . . . . . . . . . . . . . . 1 . . . Heavy Resupply 1 | . . . . . . . . . . . 1 . . . . . . Infowar Resupply 1 | . . . . . . . . . . . . . . 1 . . . Total Orders 33 | . . . . . . . . 1 1 8 5 . . 4 10 4 . FOLLOW 1 | . . . . . . . . . . . . . . 1 . . . DROP 5 | . . . . . . . . . . . 3 . . 2 . . . PICKUP 3 | . . . . . . . . . . . 2 . . 1 . . . EXPLORE 14 | . . . . . . . . . . . . . . . 10 4 . RETURN 10 | . . . . . . . . 1 1 8 . . . . . . . Ally Attacks 369 | . . . 6 42 15 . . . 36 126 113 . 21 2 2 . 6 Total Damage 8061 | . . . 29 423 205 . . . 1039 2622 2502 . 434 252 60 . 495 Kills 72 | . . . 2 7 1 . . . 9 21 24 . 2 1 . . 5 Allies Corrupted 2 | . . . . . . . . . . . . . . 2 . . . Allies Melted . | . . . . . . . . . . . . . . . . . . Intel | -11 -10 -9 -9 -8 -7 -7 -7 -7 -6 -6 -5 -4 -4 -3 -3 -2 -1 ------- Run | Yrd Mat Mat Min Mat Fac Low Low Zio Pro Fac Fac Fac DSF Res Tes Res Acc Active Infowar (turns) 10962 | . . . . 516 1154 242 10 1078 . 1358 1367 113 226 2140 1021 664 1073 Optics 7962 | . . . . . . . . . . 1358 1367 113 226 2140 1021 664 1073 Sensors 7257 | . . . . . 890 242 10 1078 . 769 1367 113 226 1889 278 247 148 IFF 492 | . . . . . . . . . . . . . . . . . 492 Structural 1268 | . . . . . . . . . . . . . . . . 421 847 T.N.C. 816 | . . . . 516 300 . . . . . . . . . . . . Robot Analysis Total 1 | . . . . . 1 . . . . . . . . . . . . Derelict Logs Recovered 7 | . . . 2 . . . 1 2 2 . . . . . . . . Drone Launches 24 | . . . . . . . . 1 1 8 . . . . 10 4 . Drone Recoveries 23 | . . . . . . . . 1 1 8 . . . . 9 4 . Zionite Intel Received 6 | . . . . . . . . . . . . . . . 5 . 1 Branch Access 1 | . . . . . . . . . . . . . . . . . 1 Emergency Access 1 | . . . . . . . . . . . . . . . 1 . . Guard Positions 1 | . . . . . . . . . . . . . . . 1 . . Prototype Schematics 1 | . . . . . . . . . . . . . . . 1 . . Unaware Schematics 1 | . . . . . . . . . . . . . . . 1 . . Trap Installations 1 | . . . . . . . . . . . . . . . 1 . . Exploration | -11 -10 -9 -9 -8 -7 -7 -7 -7 -6 -6 -5 -4 -4 -3 -3 -2 -1 ------------- Run | Yrd Mat Mat Min Mat Fac Low Low Zio Pro Fac Fac Fac DSF Res Tes Res Acc Turns Passed 14906 | 82 968 738 655 517 1154 242 357 1475 683 1431 1367 113 226 2140 1021 664 1073 Spaces Moved 10544 | 47 442 309 322 235 728 185 273 1967 1055 1340 871 76 87 1217 563 321 506 Core 15 | 13 . . . . . . . . . . . . . . . . 2 Treads . | . . . . . . . . . . . . . . . . . . Legs 7241 | 34 442 309 322 235 728 185 273 375 . 699 871 76 87 1217 563 321 504 Wheels . | . . . . . . . . . . . . . . . . . . Hover . | . . . . . . . . . . . . . . . . . . Flight 3288 | . . . . . . . . 1592 1055 641 . . . . . . . Fastest Speed 31 | 50 120 190 190 120 120 120 120 52 31 31 120 120 125 105 100 112 114 Average Speed 109 | 140 188 190 190 173 132 120 120 65 38 79 120 135 191 122 130 119 157 Slowest Speed 2000 | 200 190 190 190 190 190 120 120 325 118 190 120 190 195 220 190 240 2000 Overloaded Moves . | . . . . . . . . . . . . . . . . . . Propulsion Burnouts . | . . . . . . . . . . . . . . . . . . Robots Hopped 6 | . . . . . . . . . . 4 2 . . . . . . Potential Cave-ins 4 | . . . . . . . . . . . . . . . . . 4 Cave-ins Triggered 1 | . . . . . . . . . . . . . . . . . 1 Exploration Rate (%) 44 | 4 65 37 93 26 18 36 46 92 85 33 28 3 96 32 84 13 12 Regions Visited 17 Branch Regions 6 Pre-discovered Areas 3 | . . . 1 . . . 1 1 . . . . . . . . . Known Exits Taken 16 | 1 1 1 1 1 1 1 1 1 1 1 1 1 . 1 1 1 . Unknown Exits Taken . | . . . . . . . . . . . . . . . . . . Scrap Searched 8 | . . . 2 . . . 1 3 2 . . . . . . . . Spaces Dug 149 | . . . . . . . . . . . . . . 67 82 . . Terrain Destroyed 1079 | . . . . 7 . . 4 . . . . . 118 624 219 82 25 Melee . | . . . . . . . . . . . . . . . . . . Projectile 35 | . . . . 7 . . 4 . . . . . . 4 . 9 11 AOE 1043 | . . . . . . . . . . . . . 118 620 219 72 14 Terrain Rammed 1 | . . . . . . . . 1 . . . . . . . . . Walls Destroyed . | . . . . . . . . . . . . . . . . . . Machines Disabled . | . . . . . . . . . . . . . . . . . . Actions | -11 -10 -9 -9 -8 -7 -7 -7 -7 -6 -6 -5 -4 -4 -3 -3 -2 -1 --------- Run | Yrd Mat Mat Min Mat Fac Low Low Zio Pro Fac Fac Fac DSF Res Tes Res Acc Total 12908 | 60 528 388 347 316 871 196 287 2159 1316 1695 1087 86 128 1545 721 479 699 Wait 1120 | . 25 10 15 17 63 . . 138 236 252 77 1 . 93 59 55 79 Move 10515 | 46 441 308 321 234 727 184 272 1966 1054 1331 866 75 86 1216 562 320 506 Hop 6 | . . . . . . . . . . 4 2 . . . . . . Pick Up 125 | 8 15 7 1 9 6 . . 11 4 15 19 1 3 10 4 3 9 Fast Attach 141 | 6 5 5 . 3 6 . . 7 3 15 5 1 6 24 14 23 18 Attach 71 | . 3 2 . 2 4 . . 4 2 9 5 2 2 8 5 5 18 Detach 36 | . . . . 1 . . . 1 2 12 . 1 2 3 2 3 9 Swap 115 | . 3 8 1 4 6 2 . 7 3 18 17 3 5 7 10 12 9 Drop 183 | . 11 12 . 21 13 . . 24 4 24 28 2 11 17 4 8 4 Fire 573 | . 25 36 9 25 46 10 15 . 7 6 67 . 13 166 59 42 47 Melee 17 | . . . . . . . . . . 9 . . . . . 8 . Ram 1 | . . . . . . . . 1 . . . . . . . . . Kick 2 | . . . . . . . . . . . 1 . . 1 . . . Crush . | . . . . . . . . . . . . . . . . . . Escape Stasis 2 | . . . . . . . . . . . . . . . 2 . . Rewire 1 | . . . . . . . . . 1 . . . . . . . . Trap . | . . . . . . . . . . . . . . . . . . Miscellaneous . | . . . . . . . . . . . . . . . . . . Route ------- -11/Scrapyard -10/Materials -9/Materials (discovered 2 exits: *Mat / *Min) -9/Mines (discovered 2 exits: *Mat x2) -8/Materials -7/Factory (discovered 2 exits: *Fac / *Low) -7/Lower Caves -7/Lower Caves -7/Zion -6/Proximity Caves -6/Factory (discovered 5 exits: *Fac x3 / *Low x2) -5/Factory -4/Factory -4/DSF -3/Research -3/Testing -2/Research -1/Access (discovered 1 exit: Com) History --------- Turn | Location | Event 28 | -11/Scrapyard | Identified exit to Materials 28 | -11/Scrapyard | Discovered exit to Materials (range 16) 83 | -11/Scrapyard | Entered Materials 83 | -10/Materials | Evolved 1 slot: Utility x1 300 | -10/Materials | Build established: Hacker-Mutant 374 | -10/Materials | Repaired Lgt. Armor Plating 727 | -10/Materials | Identified exit to Materials 727 | -10/Materials | Discovered exit to Materials (range 15) 1051 | -10/Materials | Entered another Materials area 1051 | -9/Materials | Evolved 2 slots: Power x1, Propulsion x1 1410 | -9/Materials | Identified exit to Materials 1410 | -9/Materials | Discovered exit to Materials (range 15) 1568 | -9/Materials | Identified exit to Mines 1568 | -9/Materials | Discovered exit to Mines (range 15) 1789 | -9/Materials | Entered Mines 1867 | -9/Mines | Learned Materials emergency access door positions 2096 | -9/Mines | Discovered exit to Materials (range 7) 2246 | -9/Mines | Assisted by bots powering up and referring to "LRC-V3" 2329 | -9/Mines | Learned location of Storage (-7) 2421 | -9/Mines | Discovered exit to Materials (range 6) 2444 | -9/Mines | Entered Materials 2444 | -8/Materials | Accompanied by 3 allies 2444 | -8/Materials | Evolved 2 slots: Propulsion x1, Utility x1 2936 | -8/Materials | Identified exit to Factory 2936 | -8/Materials | Discovered exit to Factory (range 8) 2961 | -8/Materials | Entered Factory 2961 | -7/Factory | Accompanied by 1 ally 2961 | -7/Factory | Evolved 2 slots: Utility x2 3135 | -7/Factory | Identified exit to Factory 3135 | -7/Factory | Discovered exit to Factory (range 9) 3558 | -7/Factory | Repaired Imp. Utility Shielding? 3960 | -7/Factory | Fabricated S-27 Virus (x4) 4066 | -7/Factory | Lost 4 allies 4104 | -7/Factory | Identified exit to Lower Caves 4104 | -7/Factory | Discovered exit to Lower Caves (range 9) 4115 | -7/Factory | Entered Lower Caves 4294 | -7/Lower Caves | Encountered a Warlord checkpoint 4343 | -7/Lower Caves | Identified exit to Lower Caves 4343 | -7/Lower Caves | Discovered exit to Lower Caves (range 11) 4357 | -7/Lower Caves | Entered another Lower Caves area 4707 | -7/Lower Caves | Identified exit to Zion 4707 | -7/Lower Caves | Discovered exit to Zion (range 5) 4714 | -7/Lower Caves | Entered Zion 4749 | -7/Zion | Given the Hacking Drone Bay 4752 | -7/Zion | Found Prototype Device 4753 | -7/Zion | Identified Hacking Drone Bay 4824 | -7/Zion | Found GAL Module 4837 | -7/Zion | System corruption cleaned by Quarantine Array 4905 | -7/Zion | Identified exit to Proximity Caves 4905 | -7/Zion | Discovered exit to Proximity Caves (range 9) 5148 | -7/Zion | Learned location of Recycling (-7) 5281 | -7/Zion | Met Imprinter 5298 | -7/Zion | Imprinted 5300 | -7/Zion | Declared Zion's savior 5416 | -7/Zion | Learned location of 1 exit from Proximity Caves 5469 | -7/Zion | Given A8's code to call for help 6189 | -7/Zion | Entered Proximity Caves 6189 | -6/Proximity Caves | Accompanied by 4 allies 6482 | -6/Proximity Caves | Learned Factory stockpile data 6523 | -6/Proximity Caves | Learned 4 Factory zone layouts 6679 | -6/Proximity Caves | Attracted the attention of an 0b10 checkpoint 6872 | -6/Proximity Caves | Entered Factory 6872 | -6/Factory | Accompanied by 1 ally 6872 | -6/Factory | Evolved 2 slots: Utility x2 6873 | -6/Factory | Identified exit to Lower Caves 6878 | -6/Factory | Identified exit to DSF 6966 | -6/Factory | Build established: Hacker-Sprinter 7148 | -6/Factory | Zion Recon squad teleported in 7231 | -6/Factory | Zion Light squad teleported in 7234 | -6/Factory | Enhanced Grunt warped into view, answering call for help 7235 | -6/Factory | Enhanced Grunt warped into view, answering call for help 7252 | -6/Factory | Found Prototype Protection 7304 | -6/Factory | Fabricated S-27 Virus? 7337 | -6/Factory | Identified Zio. Weapon Casing 7574 | -6/Factory | Build established: Scavenger-Mutant 7647 | -6/Factory | Identified exit to Factory 7647 | -6/Factory | Discovered exit to Factory (range 6) 7953 | -6/Factory | Build established: Scavenger-Skirmisher 8056 | -6/Factory | Discovered exit to Factory (range 21) 8056 | -6/Factory | Discovered exit to Lower Caves (range 5) 8113 | -6/Factory | Lost 3 allies 8139 | -6/Factory | Spotted B-75 Beast 8163 | -6/Factory | Allies destroyed B-75 Beast 8197 | -6/Factory | Discovered exit to Factory (range 21) 8303 | -6/Factory | Entered another Factory area 8303 | -5/Factory | Accompanied by 3 allies 8303 | -5/Factory | Evolved 2 slots: Utility x2 8431 | -5/Factory | Garrison activated, responded to threat 8441 | -5/Factory | Found Prototype Device 8449 | -5/Factory | Identified Exp. Thermal Shield 8649 | -5/Factory | Build established: Hacker-Skirmisher 8792 | -5/Factory | Garrison activated, responded to threat 8965 | -5/Factory | Zion Light squad teleported in 9340 | -5/Factory | Lost 3 allies 9367 | -5/Factory | Zion Heavy Resupply teleported in 9382 | -5/Factory | Found Hvy. Reactive Plating 9428 | -5/Factory | Zion Fire squad teleported in 9459 | -5/Factory | Zion Light squad teleported in 9649 | -5/Factory | Identified exit to Factory 9649 | -5/Factory | Discovered exit to Factory (range 5) 9670 | -5/Factory | Entered another Factory area 9670 | -4/Factory | Accompanied by 5 allies 9670 | -4/Factory | Evolved 2 slots: Utility x2 9783 | -4/Factory | Identified exit to DSF 9783 | -4/Factory | Entered DSF 9783 | -4/DSF | Accompanied by 4 allies 9814 | -4/DSF | Additional patrols routed to DSF 9884 | -4/DSF | Found Zio. Weapon Casing 9890 | -4/DSF | Lost 4 allies 9931 | -4/DSF | Sterilization system engaged 9951 | -4/DSF | Ambient heat levels rising (+10) 9966 | -4/DSF | Ambient heat levels rising (+10) 9981 | -4/DSF | Ambient heat levels rising (+10) 9984 | -4/DSF | Identified exit to Research 9984 | -4/DSF | Discovered exit to Research (range 10) 9996 | -4/DSF | Ambient heat levels rising (+10) 10009 | -4/DSF | Entered Research 10009 | -3/Research | Evolved 2 slots: Propulsion x1, Weapon x1 10282 | -3/Research | Build established: Hacker-Tank 10575 | -3/Research | Garrison activated, responded to threat 10665 | -3/Research | Cargo convoy interrupted 10665 | -3/Research | Spotted Executioner 10667 | -3/Research | Destroyed Executioner 10710 | -3/Research | Destroyed 11 combat bots 10808 | -3/Research | Zion Infowar Resupply teleported in 11009 | -3/Research | First assault squad dispatched 11102 | -3/Research | Zion Experimental squad teleported in 11223 | -3/Research | Spotted B-86 Titan 11260 | -3/Research | System corruption reached 10% 11407 | -3/Research | Found Zio. Weapon Casing 11728 | -3/Research | Lost 3 parts (1p1n1u) 11957 | -3/Research | Spotted B-86 Titan 12000 | -3/Research | Found Prototype Launcher 12000 | -3/Research | Identified Tactical Quantum Warhead 12030 | -3/Research | Identified exit to Testing 12030 | -3/Research | Discovered exit to Testing (range 8) 12046 | -3/Research | Lost 3 parts (1n2u) 12149 | -3/Research | Entered Testing 12252 | -3/Testing | Found Prototype Launcher 12252 | -3/Testing | Identified Hellfire Missile Launcher 12262 | -3/Testing | Retrieved Zion intel report: Prototype Schematics 12284 | -3/Testing | Retrieved Zion intel report: Trap Installations 12293 | -3/Testing | Garrison activated, responded to threat 12425 | -3/Testing | Spotted PX-J2TGAUD95H 12438 | -3/Testing | Destroyed PX-J2TGAUD95H 12469 | -3/Testing | Destroyed 11 combat bots 12473 | -3/Testing | Found Prototype Device 12473 | -3/Testing | Identified Adv. Kinecellerator 12533 | -3/Testing | Build established: Scavenger-Tank 12660 | -3/Testing | Retrieved Zion intel report: Guard Positions 12688 | -3/Testing | Core integrity fell below 50% 12867 | -3/Testing | Retrieved Zion intel report: Emergency Access 12882 | -3/Testing | Retrieved Zion intel report: Unaware Schematics 12894 | -3/Testing | Spotted PH-WBPGDPWWAL 13005 | -3/Testing | Scanned by Researcher 13075 | -3/Testing | Identified exit to Research 13075 | -3/Testing | Discovered exit to Research (range 28) 13132 | -3/Testing | Found Prototype Launcher 13132 | -3/Testing | Identified Tesla Bomb Launcher 13170 | -3/Testing | Entered Research 13170 | -2/Research | Evolved 2 slots: Weapon x2 13194 | -2/Research | Lost 15 parts (1p4n6u4w) 13510 | -2/Research | Found Fusion Bomb Launcher 13527 | -2/Research | Identified exit to Access 13527 | -2/Research | Discovered exit to Access (range 43) 13647 | -2/Research | Lost 3 parts (3u) 13831 | -2/Research | Cargo convoy interrupted 13831 | -2/Research | Spotted Executioner 13834 | -2/Research | Entered Access 13834 | -1/Access | Evolved 2 slots: Power x1, Utility x1 13862 | -1/Access | Lost 3 parts (1u2w) 13945 | -1/Access | Garrison activated, responded to threat 14205 | -1/Access | Found Prototype Device 14211 | -1/Access | Identified Exp. Actuator Array 14287 | -1/Access | Build established: Scavenger-Gunner 14599 | -1/Access | Retrieved Zion intel report: Branch Access 14599 | -1/Access | Identified exit to Command 14600 | -1/Access | Zion Demo squad teleported in 14847 | -1/Access | Crushed by falling debris 14847 | -1/Access | Core integrity fell below 50% 14892 | -1/Access | Core integrity fell below 20% 14907 | -1/Access | Destroyed by Q825-r with Centrium Greatsword Last Messages --------------- 14877_ Imp. Dynamic Insulation System destroyed. 14878_ Centrium Leg destroyed. 14879_ Mic. Antimatter Reactor destroyed. 14881_ Q825-r follow-up attacks with Prototype Slashing Weapon. 14881_ K-01 Serf collects debris. 14885_ Imp. Recalibrator destroyed. 14886_ K-01 Serf collects debris. 14888_ Q825-r follow-up attacks with Prototype Slashing Weapon. 14889_ P-80 Master resets P-80 Master, system corruption cleaned. 14894_ K-01 Serf collects debris. 14894_ Rnf. Antimatter Reactor destroyed. 14895_ System corrupted: Energy discharge (-40). 14895_ Com. HERF Cannon destroyed. 14899_ P-80 Master resets P-80 Master, system corruption cleaned. 14903_ Exp. Actuator Array destroyed. 14905_ P-80 Master resets G-73 Enforcer, system corruption cleaned. 14906_ Adv. Target Analyzer destroyed. 14907_ P-80 Master resets Q825-r, system corruption cleaned. [Achievement: 10k Club] [Achievement: 20k Club] Map ----- +----------------------------------------------------+ | ################## # # #############??????? | | ###### + ##+##### ???????????????????? | | ????## # ##### ???????????????????? | | ????## ? # ## ##????????????????????? | | ????## ??? # ###????????????????????? | | ????## ????? # ### ###########????????? | | ????## ??????? # #### ###########????????? | | ????## ????????? # / ????? | | ????###??????##### ######?????????????? | | ?????????######### ######?????????????? | | ????????## # " ##?????????????????? | | ????????# "";"""## """ ##?????????????????? | | ???#######"! %[ # ! """ ##?????????????????? | | ???# ]! " + % " ##?????????????????? | | ???# ]! " # ! # ?????????????????? | | ???# ]! " # # ?????????????????? | | ???# # # + ?????????????????? | | ???# # [ #### # ?????????????????? | | ???# ######## % # ## # ?????????????????? | | ???######/######## #### # ?????????????????? | | ??????# #??## # ## ##?????????????????? | | ??????# ##### ##????????????????????? | | ??????#! " ! %=# ##????????????????????? | | ??????# ### ! ### #????????????????? | | ??????# #?# =%g|## T" #????????????????? | | ??????#######?# k g @# "" +????????????????? | | ??????????????#+##/ pQ## ? #????????????????? | | ??????????????# p # #????????????????? | | ??????????????# #?????????????????????? | | ??????????????# #?????????????????????? | | ??????????????# ##?????????????????????? | | ??????????????###########??????????????????????? | | ?????????????????? ?????????????????????????? | | ???????????????????????????????????????????????? | | ???????????????????????????????????????????????? | | ???????????????????????????????????????????????? | | ???????????????????????????????????????????????? | | ???????????????????????????????????????????????? | | ???????????????????????????????????????????????? | | ???????????????????????????????????????????????? | | ???????????????????????????????????????????????? | | ???????????????????????????????????????????????? | | ???????????????????????????????????????????????? | | ???????????????????????????????????????????????? | | ???????????????????????????????????????????????? | | ???????????????????????????????????????????????? | | ???????????????????????????????????????????????? | | ???????????????????????????????????????????????? | | ???????????????????????????????????????????????? | | ???????????????????????????????????????????????? | +----------------------------------------------------+ Best States ------------- Heat Dissipation 188 Energy Generation 59 Energy Capacity 650 Matter Stores 300 Matter Capacity 300 Sight Range 22 Robot Scan Range 18 Terrain Scan Density 10 Base Temperature (-) 150 EM Shielding 3 Armor Coverage 1000 Resistance: KI 75 Resistance: TH 65 Resistance: EX 85 Resistance: EM 35 Resistance: I 35 Resistance: S 35 Resistance: P 35 Power Shielding 66 Utility Shielding 90 Weapon Shielding 100 Phase Shifting 15 Evasion (%) 85 Targeting Accuracy 5 Target Analysis 12 Offensive Hacking 31 Defensive Hacking 14 Authchip Count 3 Item Schematics ----------------- Arm. Leg | -5/Factory | Scanalyzed Lyr. Medium Armor Plating | -5/Factory | Scanalyzed Exp. Heat Sink | -5/Factory | Scanalyzed Exp. Targeting Computer | -3/Testing | Z-intel Com. Tesla Bomb Launcher | -3/Testing | Z-intel Exp. Power Amplifier | -3/Testing | Z-intel Lrn. Phase Cannon | -3/Testing | Z-intel Neutron Cannon | -3/Testing | Z-intel Spectral Analyzer | -3/Testing | Z-intel Exp. Energy Well | -3/Testing | Z-intel Exp. Thermal Shield | -3/Testing | Z-intel Com. Mass Driver | -3/Testing | Z-intel Exp. ECM Suite | -3/Testing | Z-intel Cld. Phase Cannon | -3/Testing | Z-intel Adv. Plasma Rifle | -3/Testing | Archive Robot Schematics ------------------ S-27 Virus | -7/Factory | Hacked T-07 Excavator | -3/Testing | Z-intel W-44 Eye | -3/Testing | Z-intel M-36 Artificer | -3/Testing | Z-intel C-55 Analyst | -3/Testing | Z-intel A-15 Conveyor | -3/Testing | Archive Fabricated ------------ S-27 Virus | x4 | -7/Factory S-27 Virus | x4 | -6/Factory | Preloaded Repaired ---------- Lgt. Armor Plating | 52% | -10/Materials Imp. Utility Shielding | 25% | -7/Factory Alien Tech Used ----------------- None Achievements -------------- 10k Club 20k Club A New Friend Backstab Dangerous Findings Denied? Dodgeball, But With Guns Help From High Places Hey, That's Mine! I'm Back, Baby! Knowing Is Half The Battle Maybe Next Time I'll Detach My Launcher My Command Is Your Wish Oh No You Don't! Robot Respite Rockin' Loadout System Compromised Tank The More The Merrier The One Unlikely Earthworm Challenges ------------ None Game ------ Seed DroneLobotomyReconstructor Manual? 0 Play Time 06:35:09 Cumulative 16.1 hours Start 2025.06.15 @ 15:16:19 End 2025.06.18 @ 16:38:11 Sessions 5 Manual Loads 0 Difficulty Explorer Special Mode None Game No. 13 Rogue 6 Adventurer 0 Explorer 7 Win Type - Total 0 Types 0/0/0/0/0/0/0/0/0/0 Lore% 9 Gallery% 20 Achievement% 20 Wizard Run 0 Options --------- Layout 1 ASCII 0 Keyboard 0 Movement Mouse Keybinds 0 Fullscreen 1 Font 32/SmallcapsGlow Map View 77x35 Zoom Use 0% Tactical HUD 1 Map Filters NONE Filters NONE Steam 1 RUN: 7b997a2a-5c92-47c9-990e-33f47c729c50